[Event "56th Biel Festival MTO 2023"]
[White "Huston,Gus"]
[Black "Sanchez Alvarez,Roberto Carlos"]
[Site "Biel"]
[Round "4.17"]
[Annotator "RC"]
[Result "1-0"]
[Date "2023.07.20"]
[WhiteElo "2341"]
[BlackElo "2444"]
[PlyCount "109"]
[TimeControl "60"]

1. e4 {[%emt 0:0:0]} c5 {[%emt 0:0:0]} 2. Nf3 {[%emt 0:0:0]} e6 {[%emt 0:0:0]} 3. c3 {[%emt 0:0:0]} Nf6 {[%emt 0:0:0]} 4. e5 {[%emt 0:0:0]} Nd5 {[%emt 0:0:0]} 5. d4 {[%emt 0:0:0]} cxd4 {[%emt 0:0:0]} 6. cxd4 {[%emt 0:0:0]} d6 {[%emt 0:0:0]} 7. Bc4 {[%emt 0:0:0]} Be7 {[%emt 0:0:0]} 8. O-O {[%emt 0:0:0]} O-O {[%emt 0:0:0]} 9. Qe2 {[%emt 0:0:0]} Bd7 {[%emt 0:0:0]} 10. Nc3 {[%emt 0:0:0]} Nxc3 {[%emt 0:0:0]} 11. bxc3 {[%emt 0:0:0]} Bc6 {[%emt 0:0:0]} 12. exd6 {[%emt 0:0:0]} Bxd6 {[%emt 0:0:0]} 13. Ne5 {[%emt 0:1:38]} Qc7 {[%emt 0:0:0]} 14. Bd3 {[%emt 0:0:31]} Bxe5 {[%emt 0:8:3]} 15. dxe5 {[%emt 0:0:2]} Nd7 {[%emt 0:0:19]} 16. Ba3 {[%emt 0:6:41]} Rfd8 {[%emt 0:11:54]} 17. Be7 {[%emt 0:2:57]} Nxe5 {[%emt 0:7:40]} 18. Bxd8 {[%emt 0:0:6]} Rxd8 {[%emt 0:0:15]} 19. Be4 {[%emt 0:0:2]} Ba4 {[%emt 0:12:2]} 20. Bc2 {[%emt 0:8:33]} Bxc2 {[%emt 0:12:9]} 21. Qxc2 {[%emt 0:0:6]} Ng4 {[%emt 0:0:14]} 22. g3 {[%emt 0:0:11]} Qe5 {[%emt 0:5:11]} 23. Rad1 {[%emt 0:2:47]} Rc8 {[%emt 0:1:47]} 24. h3 {[%emt 0:4:13]} Nf6 {[%emt 0:1:12]} 25. Qa4 {[%emt 0:2:15]} h5 {[%emt 0:3:56]} 26. Qd4 {[%emt 0:15:19]} Qf5 {[%emt 0:8:15]} 27. Kg2 {[%emt 0:2:34]} Qd5+ {[%emt 0:19:0]} 28. Qxd5 {[%emt 0:5:10]} Nxd5 {[%emt 0:0:2]} 29. Rb1 {[%emt 0:5:56]} b6 {[%emt 0:0:20]} 30. Rb3 {[%emt 0:0:59]} Rxc3 {[%emt 0:1:15]} 31. Rxc3 {[%emt 0:0:27]} Nxc3 {[%emt 0:0:3]} 32. a3 {[%emt 0:0:21]} Nd5 {[%emt 0:0:40]} 33. Kf3 {[%emt 0:2:32]} f5 {[%emt 0:2:52]} 34. Ke2 {[%emt 0:1:55]} b5 {[%emt 0:6:0]} 35. Kd3 {[%emt 0:3:12]} a5 {[%emt 0:1:26]} 36. Rc1 {[%emt 0:2:29]} b4 {[%emt 0:0:30]} 37. Rc5 {[%emt 0:0:24]} bxa3 {[%emt 0:1:12]} 38. Rxa5 {[%emt 0:0:10]} Kf7 {[%emt 0:0:23]} 39. Rxa3 {[%emt 0:2:59]} Kf6 {[%emt 0:1:23]} 40. Ra8 {[%emt 0:1:43]} g6 {[%emt 0:1:10]} 41. Kd4 {[%emt 0:30:40]} h4 {[%emt 0:0:0]} 42. gxh4 {[%emt 0:0:0]} Nf4 {[%emt 0:0:0]} 43. Ra3 {[%emt 0:0:0]} e5+ {[%emt 0:0:0]} 44. Kc5 {[%emt 0:0:0]} e4 {[%emt 0:0:0]} 45. Kd4 {[%emt 0:0:0]} Kg7 {[%emt 0:0:0]} 46. h5 {[%emt 0:0:0]} Nxh5 {[%emt 0:0:46]} 47. Ke5 {[%emt 0:0:0]} Kh6 {[%emt 0:0:11]} 48. h4 {[%emt 0:0:0]} Kg7 {[%emt 0:0:8]} 49. Ra7+ {[%emt 0:0:0]} Kh6 {[%emt 0:0:23]} 50. Rb7 {[%emt 0:0:0]} Ng7 {[%emt 0:1:18]} 51. Rb8 {[%emt 0:0:0]} Nh5 {[%emt 0:27:25]} 52. Rh8+ {[%emt 0:0:0]} Kg7 {[%emt 0:0:11]} 53. Rxh5 {[%emt 0:0:0]} e3 {[%emt 0:0:7]} 54. fxe3 {[%emt 0:0:0]} gxh5 {[%emt 0:0:11]} 55. Kxf5 {[%emt 0:0:0]} 1-0

[Event "56th Biel Festival MTO 2023"]
[White "Licznerski,Lukasz"]
[Black "Schnepp,Gunnar"]
[Site "Biel"]
[Round "4.18"]
[Annotator "RC"]
[Result "1-0"]
[Date "2023.07.20"]
[WhiteElo "2430"]
[BlackElo "2278"]
[PlyCount "121"]
[TimeControl "60"]

1. e4 {[%emt 0:0:0]} c5 {[%emt 0:0:0]} 2. Nf3 {[%emt 0:0:0]} d6 {[%emt 0:0:0]} 3. d4 {[%emt 0:0:0]} cxd4 {[%emt 0:0:0]} 4. Nxd4 {[%emt 0:0:0]} Nf6 {[%emt 0:0:0]} 5. Nc3 {[%emt 0:0:0]} a6 {[%emt 0:0:0]} 6. Be3 {[%emt 0:0:0]} e6 {[%emt 0:0:0]} 7. a4 {[%emt 0:12:43]} Be7 {[%emt 0:2:16]} 8. Be2 {[%emt 0:0:46]} O-O {[%emt 0:0:58]} 9. O-O {[%emt 0:0:13]} Qc7 {[%emt 0:1:56]} 10. f4 {[%emt 0:4:53]} Nc6 {[%emt 0:0:37]} 11. Nb3 {[%emt 0:2:36]} b6 {[%emt 0:9:39]} 12. g4 {[%emt 0:1:5]} d5 {[%emt 0:12:44]} 13. e5 {[%emt 0:3:48]} Ne4 {[%emt 0:10:24]} 14. Bd3 {[%emt 0:11:1]} Nc5 {[%emt 0:26:55]} 15. Nd4 {[%emt 0:1:32]} Bb7 {[%emt 0:5:2]} 16. Nxc6 {[%emt 0:6:27]} Qxc6 {[%emt 0:5:43]} 17. Bd4 {[%emt 0:0:3]} Ne4 {[%emt 0:4:26]} 18. Qf3 {[%emt 0:6:2]} Bc5 {[%emt 0:2:8]} 19. Qe3 {[%emt 0:0:23]} Bxd4 {[%emt 0:8:18]} 20. Qxd4 {[%emt 0:4:23]} Nxc3 {[%emt 0:1:34]} 21. bxc3 {[%emt 0:1:10]} b5 {[%emt 0:2:38]} 22. axb5 {[%emt 0:15:29]} axb5 {[%emt 0:0:3]} 23. Rfb1 {[%emt 0:0:9]} Ra4 {[%emt 0:3:33]} 24. Rxa4 {[%emt 0:1:49]} bxa4 {[%emt 0:0:3]} 25. Bb5 {[%emt 0:0:47]} Qc7 {[%emt 0:0:26]} 26. Bxa4 {[%emt 0:0:41]} Ra8 {[%emt 0:2:0]} 27. Bb5 {[%emt 0:1:35]} g6 {[%emt 0:0:20]} 28. f5 {[%emt 0:5:11]} Ba6 {[%emt 0:0:45]} 29. Ra1 {[%emt 0:8:17]} Qc8 {[%emt 0:0:25]} 30. c4 {[%emt 0:2:5]} Bxb5 {[%emt 0:2:3]} 31. Rxa8 {[%emt 0:0:26]} Qxa8 {[%emt 0:0:2]} 32. cxb5 {[%emt 0:0:9]} Qa5 {[%emt 0:0:56]} 33. fxe6 {[%emt 0:10:11]} fxe6 {[%emt 0:0:8]} 34. c4 {[%emt 0:0:20]} Qe1+ {[%emt 0:0:17]} 35. Kg2 {[%emt 0:0:1]} Qe2+ {[%emt 0:0:39]} 36. Kg3 {[%emt 0:0:3]} Qe1+ {[%emt 0:0:33]} 37. Kh3 {[%emt 0:0:2]} Qf1+ {[%emt 0:0:21]} 38. Kh4 {[%emt 0:0:3]} dxc4 {[%emt 0:0:59]} 39. Qd8+ {[%emt 0:4:10]} Kg7 {[%emt 0:0:10]} 40. Qc7+ {[%emt 0:1:20]} Qf7 {[%emt 0:0:52]} 41. b6 {[%emt 0:0:0]} c3 {[%emt 0:0:0]} 42. Kg3 {[%emt 0:0:0]} g5 {[%emt 0:0:0]} 43. h3 {[%emt 0:1:19]} Kg6 {[%emt 0:0:0]} 44. Qxc3 {[%emt 0:2:0]} Qf4+ {[%emt 0:0:0]} 45. Kg2 {[%emt 0:0:1]} Qe4+ {[%emt 0:0:0]} 46. Kf2 {[%emt 0:10:19]} Qf4+ {[%emt 0:0:0]} 47. Ke2 {[%emt 0:0:34]} Qh2+ {[%emt 0:0:0]} 48. Kd3 {[%emt 0:0:23]} Qxh3+ {[%emt 0:0:0]} 49. Kc4 {[%emt 0:1:7]} Qxg4+ {[%emt 0:0:25]} 50. Kb3 {[%emt 0:0:1]} Kh6 {[%emt 0:8:57]} 51. b7 {[%emt 0:7:15]} Qd1+ {[%emt 0:0:46]} 52. Kb4 {[%emt 0:1:23]} Qb1+ {[%emt 0:5:37]} 53. Qb3 {[%emt 0:0:3]} Qe1+ {[%emt 0:0:42]} 54. Ka4 {[%emt 0:0:29]} Qa1+ {[%emt 0:1:39]} 55. Qa3 {[%emt 0:0:34]} Qd4+ {[%emt 0:1:52]} 56. Qb4 {[%emt 0:0:55]} Qa1+ {[%emt 0:0:53]} 57. Kb5 {[%emt 0:0:36]} Qxe5+ {[%emt 0:1:14]} 58. Kc6 {[%emt 0:0:26]} Qd5+ {[%emt 0:6:19]} 59. Kc7 {[%emt 0:0:3]} Qe5+ {[%emt 0:0:21]} 60. Kd7 {[%emt 0:0:58]} Qb8 {[%emt 0:8:40]} 61. Qb6 {[%emt 0:0:29]} 1-0

[Event "56th Biel Festival MTO 2023"]
[White "Vantika Agrawal"]
[Black "Asllani,Dorian"]
[Site "Biel"]
[Round "4.19"]
[Annotator "ChessBase"]
[Result "1-0"]
[Date "2023.07.20"]
[WhiteElo "2428"]
[BlackElo "2272"]
[PlyCount "71"]
[TimeControl "60"]

1. e4 {[%emt 0:0:0]} c5 {[%emt 0:0:0]} 2. Nf3 {[%emt 0:0:0]} Nc6 {[%emt 0:0:0]} 3. Bb5 {[%emt 0:0:0]} g6 {[%emt 0:0:0]} 4. Bxc6 {[%emt 0:0:0]} dxc6 {[%emt 0:0:0]} 5. d3 {[%emt 0:0:0]} Bg7 {[%emt 0:0:0]} 6. h3 {[%emt 0:0:0]} e5 {[%emt 0:0:0]} 7. O-O {[%emt 0:0:0]} f6 {[%emt 0:0:0]} 8. Be3 {[%emt 0:0:47]} b6 {[%emt 0:0:0]} 9. a4 {[%emt 0:0:48]} a5 {[%emt 0:0:0]} 10. c3 {[%emt 0:1:48]} Ba6 {[%emt 0:22:4]} 11. Qb3 {[%emt 0:7:58]} Bxd3 {[%emt 0:10:1]} 12. Rd1 {[%emt 0:17:46]} c4 {[%emt 0:3:30]} 13. Qa2 {[%emt 0:1:42]} f5 {[%emt 0:33:5]} 14. Na3 {[%emt 0:52:7]} fxe4 {[%emt 0:14:35]} 15. Ne1 {[%emt 0:9:29]} Qd5 {[%emt 0:8:23]} 16. Bxb6 {[%emt 0:0:20]} Ne7 {[%emt 0:3:21]} 17. Nxd3 {[%emt 0:1:20]} cxd3 {[%emt 0:0:13]} 18. Nc4 {[%emt 0:0:25]} O-O {[%emt 0:2:13]} 19. Nxa5 {[%emt 0:2:28]} e3 {[%emt 0:1:55]} 20. fxe3 {[%emt 0:2:27]} Ra6 {[%emt 0:0:9]} 21. Nxc6 {[%emt 0:0:52]} Kh8 {[%emt 0:1:0]} 22. Nxe7 {[%emt 0:0:28]} Qe4 {[%emt 0:0:30]} 23. Qd5 {[%emt 0:0:42]} Qh4 {[%emt 0:0:1]} 24. Bc5 {[%emt 0:0:28]} Raf6 {[%emt 0:0:49]} 25. Qxd3 {[%emt 0:0:30]} Rf2 {[%emt 0:0:16]} 26. Nxg6+ {[%emt 0:0:19]} hxg6 {[%emt 0:0:5]} 27. Bxf8 {[%emt 0:0:17]} Bxf8 {[%emt 0:1:1]} 28. Rf1 {[%emt 0:0:42]} e4 {[%emt 0:0:0]} 29. Qd7 {[%emt 0:0:30]} Rxf1+ {[%emt 0:0:51]} 30. Rxf1 {[%emt 0:0:11]} Bh6 {[%emt 0:0:3]} 31. Qd4+ {[%emt 0:0:59]} Kg8 {[%emt 0:0:1]} 32. Kh1 {[%emt 0:0:30]} Bg7 {[%emt 0:0:16]} 33. Qd5+ {[%emt 0:0:13]} Kh8 {[%emt 0:0:1]} 34. Qf7 {[%emt 0:0:35]} g5 {[%emt 0:1:10]} 35. Rd1 {[%emt 0:0:28]} g4 {[%emt 0:0:47]} 36. Qe8+ {[%emt 0:0:9]} 1-0

[Event "56th Biel Festival MTO 2023"]
[White "Wessman,Richard"]
[Black "Vasquez Toledo,Cristian"]
[Site "Biel"]
[Round "4.20"]
[Annotator "RC"]
[Result "1/2-1/2"]
[Date "2023.07.20"]
[WhiteElo "2410"]
[BlackElo "2233"]
[PlyCount "36"]
[TimeControl "60"]

1. d4 {[%emt 0:0:0]} d5 {[%emt 0:0:0]} 2. c4 {[%emt 0:0:0]} e6 {[%emt 0:0:0]} 3. Nf3 {[%emt 0:0:0]} c6 {[%emt 0:0:0]} 4. Qc2 {[%emt 0:0:0]} Nf6 {[%emt 0:0:0]} 5. g3 {[%emt 0:0:0]} Be7 {[%emt 0:0:0]} 6. Bg2 {[%emt 0:0:0]} O-O {[%emt 0:0:0]} 7. O-O {[%emt 0:0:0]} b6 {[%emt 0:0:0]} 8. b3 {[%emt 0:0:0]} a5 {[%emt 0:1:17]} 9. Nbd2 {[%emt 0:1:41]} c5 {[%emt 0:2:24]} 10. Bb2 {[%emt 0:17:12]} Nc6 {[%emt 0:0:40]} 11. Rad1 {[%emt 0:1:16]} Qc7 {[%emt 0:42:11]} 12. e4 {[%emt 0:20:8]} Nxd4 {[%emt 0:7:6]} 13. Nxd4 {[%emt 0:17:44]} cxd4 {[%emt 0:0:14]} 14. Bxd4 {[%emt 0:1:49]} Bb7 {[%emt 0:3:51]} 15. Rfe1 {[%emt 0:5:35]} e5 {[%emt 0:4:13]} 16. Be3 {[%emt 0:0:41]} d4 {[%emt 0:0:55]} 17. Bg5 {[%emt 0:0:12]} Ne8 {[%emt 0:12:25]} 18. Bxe7 {[%emt 0:0:19]} Qxe7 {[%emt 0:0:3]} 1/2-1/2

[Event "56th Biel Festival MTO 2023"]
[White "Toktomushev,Teimur"]
[Black "Shlyakhtenko,Robert"]
[Site "Biel"]
[Round "4.21"]
[Annotator "ChessBase"]
[Result "1/2-1/2"]
[Date "2023.07.20"]
[WhiteElo "2206"]
[BlackElo "2401"]
[PlyCount "56"]
[TimeControl "60"]

1. d4 {[%emt 0:0:0]} d5 {[%emt 0:0:0]} 2. c4 {[%emt 0:0:0]} c6 {[%emt 0:0:0]} 3. Nc3 {[%emt 0:0:0]} Nf6 {[%emt 0:0:0]} 4. e3 {[%emt 0:0:0]} e6 {[%emt 0:0:0]} 5. Nf3 {[%emt 0:0:0]} Nbd7 {[%emt 0:0:0]} 6. Qc2 {[%emt 0:0:0]} Be7 {[%emt 0:0:0]} 7. Bd3 {[%emt 0:0:0]} dxc4 {[%emt 0:0:0]} 8. Bxc4 {[%emt 0:0:0]} b5 {[%emt 0:0:0]} 9. Bd3 {[%emt 0:0:0]} b4 {[%emt 0:0:0]} 10. Na4 {[%emt 0:8:5]} Bb7 {[%emt 0:0:0]} 11. e4 {[%emt 0:3:5]} Rc8 {[%emt 0:0:0]} 12. O-O {[%emt 0:12:9]} c5 {[%emt 0:9:36]} 13. dxc5 {[%emt 0:0:15]} Nxc5 {[%emt 0:0:46]} 14. Nxc5 {[%emt 0:0:12]} Bxc5 {[%emt 0:0:19]} 15. Qe2 {[%emt 0:21:3]} h6 {[%emt 0:10:6]} 16. Bb5+ {[%emt 0:6:27]} Ke7 {[%emt 0:6:14]} 17. a3 {[%emt 0:19:39]} b3 {[%emt 0:12:1]} 18. Nd2 {[%emt 0:5:31]} Bb6 {[%emt 0:13:42]} 19. a4 {[%emt 0:18:7]} a5 {[%emt 0:19:40]} 20. Nxb3 {[%emt 0:4:14]} Bxe4 {[%emt 0:12:18]} 21. Be3 {[%emt 0:0:42]} Rc2 {[%emt 0:1:15]} 22. Qe1 {[%emt 0:0:24]} Bd5 {[%emt 0:2:17]} 23. Bxb6 {[%emt 0:1:27]} Qxb6 {[%emt 0:0:1]} 24. Qxa5 {[%emt 0:0:23]} Qd6 {[%emt 0:6:9]} 25. Qa7+ {[%emt 0:0:23]} Rc7 {[%emt 0:0:34]} 26. Qe3 {[%emt 0:0:5]} Ng4 {[%emt 0:0:19]} 27. Qh3 {[%emt 0:0:4]} Qb4 {[%emt 0:0:13]} 28. Nc1 {[%emt 0:1:34]} Qxb2 {[%emt 0:4:16]} 1/2-1/2

[Event "56th Biel Festival MTO 2023"]
[White "Bharath Subramaniyam H"]
[Black "Frey,Fabian"]
[Site "Biel"]
[Round "4.22"]
[Annotator "ChessBase"]
[Result "1-0"]
[Date "2023.07.20"]
[WhiteElo "2488"]
[BlackElo "2230"]
[PlyCount "67"]
[TimeControl "60"]

1. b3 {[%emt 0:0:0]} d5 {[%emt 0:0:0]} 2. Bb2 {[%emt 0:0:0]} Bf5 {[%emt 0:0:0]} 3. d3 {[%emt 0:0:0]} Nf6 {[%emt 0:0:0]} 4. Nd2 {[%emt 0:0:0]} c5 {[%emt 0:0:0]} 5. g3 {[%emt 0:0:0]} Nc6 {[%emt 0:0:0]} 6. Ngf3 {[%emt 0:0:0]} Qc7 {[%emt 0:0:0]} 7. Bg2 {[%emt 0:0:0]} e5 {[%emt 0:0:0]} 8. O-O {[%emt 0:1:16]} Be7 {[%emt 0:0:47]} 9. e4 {[%emt 0:15:22]} dxe4 {[%emt 0:2:20]} 10. dxe4 {[%emt 0:3:37]} Be6 {[%emt 0:10:29]} 11. Qe2 {[%emt 0:18:36]} O-O {[%emt 0:12:6]} 12. Nc4 {[%emt 0:7:6]} Nd7 {[%emt 0:0:35]} 13. c3 {[%emt 0:4:0]} Rfd8 {[%emt 0:4:33]} 14. Ne3 {[%emt 0:1:40]} Nb6 {[%emt 0:2:53]} 15. c4 {[%emt 0:12:55]} Bd6 {[%emt 0:22:25]} 16. Ng5 {[%emt 0:6:30]} Bc8 {[%emt 0:9:13]} 17. Nd5 {[%emt 0:6:13]} Nxd5 {[%emt 0:0:52]} 18. exd5 {[%emt 0:0:43]} Nd4 {[%emt 0:1:30]} 19. Qh5 {[%emt 0:3:58]} Bf5 {[%emt 0:7:6]} 20. Bxd4 {[%emt 0:7:50]} exd4 {[%emt 0:0:31]} 21. Be4 {[%emt 0:0:17]} Bxe4 {[%emt 0:4:7]} 22. Nxe4 {[%emt 0:0:10]} Re8 {[%emt 0:0:43]} 23. Rae1 {[%emt 0:1:22]} h6 {[%emt 0:5:12]} 24. f4 {[%emt 0:1:22]} Re7 {[%emt 0:5:40]} 25. Qg4 {[%emt 0:3:44]} Kh8 {[%emt 0:0:22]} 26. f5 {[%emt 0:0:14]} f6 {[%emt 0:1:21]} 27. Qg6 {[%emt 0:3:7]} Be5 {[%emt 0:2:53]} 28. Nf2 {[%emt 0:2:49]} Rae8 {[%emt 0:0:35]} 29. Nd3 {[%emt 0:0:22]} Qa5 {[%emt 0:1:7]} 30. Nxe5 {[%emt 0:0:35]} Kg8 {[%emt 0:2:52]} 31. d6 {[%emt 0:0:17]} Rxe5 {[%emt 0:0:26]} 32. Qxe8+ {[%emt 0:0:13]} Rxe8 {[%emt 0:0:9]} 33. Rxe8+ {[%emt 0:0:6]} Kf7 {[%emt 0:0:11]} 34. d7 {[%emt 0:0:14]} 1-0

[Event "56th Biel Festival MTO 2023"]
[White "Vincenti,Leonardo"]
[Black "Huang,Qian"]
[Site "Biel"]
[Round "4.23"]
[Annotator "ChessBase"]
[Result "1/2-1/2"]
[Date "2023.07.20"]
[WhiteElo "2117"]
[BlackElo "2422"]
[PlyCount "118"]
[TimeControl "60"]

1. e4 {[%emt 0:0:0]} c5 {[%emt 0:0:0]} 2. Nf3 {[%emt 0:0:0]} Nc6 {[%emt 0:0:0]} 3. Bb5 {[%emt 0:0:0]} e6 {[%emt 0:0:0]} 4. O-O {[%emt 0:0:0]} Nge7 {[%emt 0:0:0]} 5. d4 {[%emt 0:0:0]} cxd4 {[%emt 0:0:38]} 6. Nxd4 {[%emt 0:0:0]} Qb6 {[%emt 0:0:13]} 7. Nxc6 {[%emt 0:0:0]} Nxc6 {[%emt 0:3:19]} 8. Nc3 {[%emt 0:0:0]} Be7 {[%emt 0:8:19]} 9. Be3 {[%emt 0:0:0]} Qc7 {[%emt 0:0:9]} 10. f4 {[%emt 0:7:26]} O-O {[%emt 0:2:17]} 11. Bxc6 {[%emt 0:5:26]} Qxc6 {[%emt 0:0:29]} 12. f5 {[%emt 0:5:39]} b5 {[%emt 0:8:2]} 13. Qg4 {[%emt 0:8:46]} Bf6 {[%emt 0:6:38]} 14. e5 {[%emt 0:1:1]} exf5 {[%emt 0:20:44]} 15. Rxf5 {[%emt 0:1:38]} Be7 {[%emt 0:0:4]} 16. Bg5 {[%emt 0:7:18]} Bxg5 {[%emt 0:28:1]} 17. Rxg5 {[%emt 0:0:24]} g6 {[%emt 0:0:7]} 18. Ne4 {[%emt 0:13:1]} d5 {[%emt 0:0:18]} 19. Nf6+ {[%emt 0:2:50]} Qxf6 {[%emt 0:0:4]} 20. exf6 {[%emt 0:0:17]} Bxg4 {[%emt 0:0:4]} 21. Rxg4 {[%emt 0:0:4]} Rac8 {[%emt 0:0:11]} 22. c3 {[%emt 0:1:52]} Rc6 {[%emt 0:1:29]} 23. Rf4 {[%emt 0:15:49]} Re8 {[%emt 0:3:16]} 24. Rd1 {[%emt 0:5:1]} Re5 {[%emt 0:0:50]} 25. a4 {[%emt 0:6:3]} bxa4 {[%emt 0:7:3]} 26. c4 {[%emt 0:0:35]} Rd6 {[%emt 0:6:23]} 27. Rxd5 {[%emt 0:4:25]} Rexd5 {[%emt 0:2:9]} 28. cxd5 {[%emt 0:0:1]} Rxd5 {[%emt 0:1:45]} 29. Rxa4 {[%emt 0:1:59]} Rd6 {[%emt 0:0:59]} 30. Rxa7 {[%emt 0:0:33]} Rxf6 {[%emt 0:0:2]} 31. Ra1 {[%emt 0:0:32]} Rb6 {[%emt 0:1:12]} 32. Rb1 {[%emt 0:0:31]} Kf8 {[%emt 0:0:30]} 33. b4 {[%emt 0:2:44]} Ke7 {[%emt 0:0:23]} 34. Kf2 {[%emt 0:0:30]} Kd6 {[%emt 0:0:15]} 35. Ke3 {[%emt 0:0:16]} Kc6 {[%emt 0:1:2]} 36. g4 {[%emt 0:5:35]} Kb5 {[%emt 0:0:49]} 37. g5 {[%emt 0:1:8]} Re6+ {[%emt 0:0:25]} 38. Kf3 {[%emt 0:1:41]} f5 {[%emt 0:0:21]} 39. gxf6 {[%emt 0:1:2]} Rxf6+ {[%emt 0:0:3]} 40. Kg4 {[%emt 0:0:53]} Rd6 {[%emt 0:1:2]} 41. Kg5 {[%emt 0:32:16]} Rd5+ {[%emt 0:30:34]} 42. Kg4 {[%emt 0:2:13]} Rd4+ {[%emt 0:0:9]} 43. Kg5 {[%emt 0:0:8]} Rd5+ {[%emt 0:0:18]} 44. Kg4 {[%emt 0:0:1]} Rd2 {[%emt 0:1:7]} 45. h4 {[%emt 0:0:25]} Rg2+ {[%emt 0:0:36]} 46. Kh3 {[%emt 0:0:53]} Rd2 {[%emt 0:0:4]} 47. Kg4 {[%emt 0:0:24]} Rd5 {[%emt 0:0:10]} 48. Rb2 {[%emt 0:0:39]} h6 {[%emt 0:0:7]} 49. Kh3 {[%emt 0:1:39]} Rd3+ {[%emt 0:0:6]} 50. Kh2 {[%emt 0:0:5]} Rd5 {[%emt 0:0:54]} 51. Kh3 {[%emt 0:1:24]} Rd3+ {[%emt 0:0:6]} 52. Kh2 {[%emt 0:0:0]} h5 {[%emt 0:0:27]} 53. Rg2 {[%emt 0:0:0]} Rd6 {[%emt 0:0:2]} 54. Kg3 {[%emt 0:1:15]} Rf6 {[%emt 0:1:48]} 55. Rf2 {[%emt 0:0:32]} Rc6 {[%emt 0:0:11]} 56. Rf4 {[%emt 0:0:0]} Rc1 {[%emt 0:0:0]} 57. Re4 {[%emt 0:0:0]} Rg1+ {[%emt 0:0:0]} 58. Kf4 {[%emt 0:0:0]} Kc6 {[%emt 0:0:0]} 59. b5+ {[%emt 0:0:0]} Kxb5 {[%emt 0:0:0]} 1/2-1/2

[Event "56th Biel Festival MTO 2023"]
[White "Ehsani,Yassamin"]
[Black "Jinan Jomon"]
[Site "Biel"]
[Round "4.24"]
[Annotator "RC"]
[Result "0-1"]
[Date "2023.07.20"]
[WhiteElo "2106"]
[BlackElo "2409"]
[PlyCount "112"]
[TimeControl "60"]

1. d4 {[%emt 0:0:0]} Nf6 {[%emt 0:0:0]} 2. c4 {[%emt 0:0:0]} e6 {[%emt 0:0:0]} 3. Nf3 {[%emt 0:0:0]} Bb4+ {[%emt 0:0:0]} 4. Nbd2 {[%emt 0:0:0]} b6 {[%emt 0:0:0]} 5. a3 {[%emt 0:0:0]} Bxd2+ {[%emt 0:0:0]} 6. Bxd2 {[%emt 0:0:0]} Bb7 {[%emt 0:0:0]} 7. g3 {[%emt 0:6:4]} Bxf3 {[%emt 0:2:39]} 8. exf3 {[%emt 0:0:3]} O-O {[%emt 0:6:22]} 9. Be3 {[%emt 0:16:34]} d5 {[%emt 0:6:56]} 10. b3 {[%emt 0:0:15]} dxc4 {[%emt 0:10:34]} 11. bxc4 {[%emt 0:0:49]} Nc6 {[%emt 0:1:2]} 12. Bg2 {[%emt 0:2:17]} Qd6 {[%emt 0:13:17]} 13. Qd3 {[%emt 0:7:24]} Rad8 {[%emt 0:10:37]} 14. Rd1 {[%emt 0:1:34]} Ne7 {[%emt 0:9:40]} 15. O-O {[%emt 0:9:3]} c5 {[%emt 0:4:50]} 16. Qb3 {[%emt 0:10:57]} cxd4 {[%emt 0:2:26]} 17. Rxd4 {[%emt 0:0:11]} Qc7 {[%emt 0:0:13]} 18. Rxd8 {[%emt 0:15:40]} Rxd8 {[%emt 0:0:2]} 19. Rc1 {[%emt 0:0:15]} Nd7 {[%emt 0:2:39]} 20. Qb5 {[%emt 0:4:51]} Nf5 {[%emt 0:1:18]} 21. Bf4 {[%emt 0:1:18]} Qc8 {[%emt 0:11:38]} 22. Rd1 {[%emt 0:6:26]} Nc5 {[%emt 0:0:24]} 23. Rxd8+ {[%emt 0:1:10]} Qxd8 {[%emt 0:0:2]} 24. Qc6 {[%emt 0:0:27]} h6 {[%emt 0:7:30]} 25. h4 {[%emt 0:12:57]} Nd3 {[%emt 0:3:13]} 26. Qe4 {[%emt 0:1:28]} Nxf4 {[%emt 0:0:40]} 27. Qxf4 {[%emt 0:0:9]} Qe7 {[%emt 0:6:0]} 28. a4 {[%emt 0:1:19]} Qd6 {[%emt 0:0:4]} 29. Qxd6 {[%emt 0:2:2]} Nxd6 {[%emt 0:0:1]} 30. Bf1 {[%emt 0:0:2]} Kf8 {[%emt 0:1:46]} 31. Bd3 {[%emt 0:0:59]} Ke7 {[%emt 0:0:6]} 32. Kf1 {[%emt 0:0:3]} Kd7 {[%emt 0:1:52]} 33. Ke2 {[%emt 0:0:7]} Kc6 {[%emt 0:0:29]} 34. Kd2 {[%emt 0:0:9]} e5 {[%emt 0:0:26]} 35. Kc3 {[%emt 0:1:25]} Kc5 {[%emt 0:0:5]} 36. Be2 {[%emt 0:0:41]} Nf5 {[%emt 0:0:49]} 37. Bd3 {[%emt 0:0:32]} Nd6 {[%emt 0:0:38]} 38. Be2 {[%emt 0:0:7]} f6 {[%emt 0:0:33]} 39. Bd3 {[%emt 0:0:21]} Ne8 {[%emt 0:0:37]} 40. Bf5 {[%emt 0:1:4]} Nc7 {[%emt 0:0:29]} 41. Bc8 {[%emt 0:0:0]} Ne8 {[%emt 0:0:0]} 42. Bf5 {[%emt 0:0:0]} g5 {[%emt 0:0:0]} 43. hxg5 {[%emt 0:0:0]} fxg5 {[%emt 0:0:0]} 44. g4 {[%emt 0:0:0]} Nd6 {[%emt 0:3:12]} 45. Be6 {[%emt 0:0:0]} e4 {[%emt 0:3:56]} 46. Bd5 {[%emt 0:0:0]} exf3 {[%emt 0:0:40]} 47. Kd3 {[%emt 0:0:0]} Kb4 {[%emt 0:5:52]} 48. Kd4 {[%emt 0:0:0]} a5 {[%emt 0:0:9]} 49. Kd3 {[%emt 0:1:38]} Kxa4 {[%emt 0:10:11]} 50. Kc3 {[%emt 0:0:13]} Ka3 {[%emt 0:1:3]} 51. Bxf3 {[%emt 0:2:57]} Ne8 {[%emt 0:0:35]} 52. Bc6 {[%emt 0:2:13]} Nc7 {[%emt 0:0:10]} 53. Bd7 {[%emt 0:3:55]} Na6 {[%emt 0:0:11]} 54. Bc6 {[%emt 0:1:8]} Nc5 {[%emt 0:0:25]} 55. f3 {[%emt 0:4:7]} Na4+ {[%emt 0:0:13]} 56. Kd4 {[%emt 0:2:28]} Kb4 {[%emt 0:0:23]} 0-1

[Event "56th Biel Festival MTO 2023"]
[White "Seul,Georg"]
[Black "Eidelman,Gabriel"]
[Site "Biel"]
[Round "4.25"]
[Annotator "RC"]
[Result "1/2-1/2"]
[Date "2023.07.20"]
[WhiteElo "2376"]
[BlackElo "2204"]
[PlyCount "107"]
[TimeControl "60"]

1. e4 {[%emt 0:0:0]} c5 {[%emt 0:0:0]} 2. Nf3 {[%emt 0:0:0]} d6 {[%emt 0:0:0]} 3. Bb5+ {[%emt 0:0:0]} Bd7 {[%emt 0:0:0]} 4. Bxd7+ {[%emt 0:0:0]} Nxd7 {[%emt 0:0:0]} 5. O-O {[%emt 0:0:0]} Ngf6 {[%emt 0:0:0]} 6. Qe2 {[%emt 0:0:0]} e6 {[%emt 0:0:0]} 7. d3 {[%emt 0:0:0]} Be7 {[%emt 0:10:53]} 8. Ng5 {[%emt 0:0:0]} h6 {[%emt 0:16:0]} 9. Nh3 {[%emt 0:0:0]} Qc7 {[%emt 0:20:10]} 10. f4 {[%emt 0:0:0]} O-O-O {[%emt 0:7:18]} 11. Na3 {[%emt 0:0:0]} g6 {[%emt 0:12:48]} 12. Nb5 {[%emt 0:21:15]} Qb6 {[%emt 0:2:0]} 13. c4 {[%emt 0:7:50]} a6 {[%emt 0:1:9]} 14. Nc3 {[%emt 0:0:30]} Nb8 {[%emt 0:0:30]} 15. Be3 {[%emt 0:3:30]} Nc6 {[%emt 0:4:23]} 16. Rab1 {[%emt 0:0:56]} Qa5 {[%emt 0:12:34]} 17. a3 {[%emt 0:1:21]} Nd7 {[%emt 0:1:32]} 18. Qd1 {[%emt 0:37:28]} Bf6 {[%emt 0:3:7]} 19. b4 {[%emt 0:0:34]} Qc7 {[%emt 0:1:59]} 20. Ne2 {[%emt 0:0:47]} Bd4 {[%emt 0:1:48]} 21. Nxd4 {[%emt 0:0:33]} Nxd4 {[%emt 0:0:16]} 22. Rf2 {[%emt 0:0:59]} Kb8 {[%emt 0:3:30]} 23. Rfb2 {[%emt 0:1:2]} b6 {[%emt 0:0:45]} 24. Nf2 {[%emt 0:13:3]} f5 {[%emt 0:0:39]} 25. Qd2 {[%emt 0:2:35]} Ka7 {[%emt 0:0:29]} 26. Nd1 {[%emt 0:0:17]} g5 {[%emt 0:0:56]} 27. exf5 {[%emt 0:1:36]} Nxf5 {[%emt 0:0:21]} 28. Nc3 {[%emt 0:3:56]} gxf4 {[%emt 0:0:4]} 29. Bxf4 {[%emt 0:0:8]} Rhg8 {[%emt 0:0:9]} 30. bxc5 {[%emt 0:0:35]} bxc5 {[%emt 0:1:14]} 31. Ne4 {[%emt 0:3:48]} Rb8 {[%emt 0:0:35]} 32. Bxh6 {[%emt 0:1:23]} Rxb2 {[%emt 0:0:33]} 33. Rxb2 {[%emt 0:0:4]} Ne5 {[%emt 0:0:37]} 34. Kh1 {[%emt 0:1:42]} Nxh6 {[%emt 0:0:32]} 35. Qxh6 {[%emt 0:0:3]} Nxd3 {[%emt 0:0:35]} 36. Qxe6 {[%emt 0:1:28]} Rf8 {[%emt 0:0:30]} 37. Rb1 {[%emt 0:0:6]} Qh7 {[%emt 0:0:28]} 38. Kg1 {[%emt 0:0:48]} Nf4 {[%emt 0:0:33]} 39. Qg4 {[%emt 0:0:56]} Nh3+ {[%emt 0:0:30]} 40. Qxh3 {[%emt 0:0:25]} Qxe4 {[%emt 0:0:19]} 41. Qb3 {[%emt 0:0:0]} Qc6 {[%emt 0:0:0]} 42. Rb2 {[%emt 0:18:27]} Qc7 {[%emt 0:0:0]} 43. h3 {[%emt 0:8:13]} Re8 {[%emt 0:0:0]} 44. Qc3 {[%emt 0:1:41]} Re4 {[%emt 0:0:0]} 45. Rb1 {[%emt 0:0:54]} Rd4 {[%emt 0:2:35]} 46. a4 {[%emt 0:0:11]} a5 {[%emt 0:5:33]} 47. Qb3 {[%emt 0:0:57]} Rf4 {[%emt 0:6:50]} 48. Qb5 {[%emt 0:0:26]} Rf8 {[%emt 0:0:37]} 49. Rb2 {[%emt 0:0:33]} Rh8 {[%emt 0:1:11]} 50. Rb1 {[%emt 0:0:22]} Rf8 {[%emt 0:0:7]} 51. Rb3 {[%emt 0:0:32]} Rh8 {[%emt 0:0:42]} 52. Rb2 {[%emt 0:0:31]} Rg8 {[%emt 0:1:10]} 53. Rb3 {[%emt 0:0:41]} Rh8 {[%emt 0:0:20]} 54. Rb2 {[%emt 0:2:18]} 1/2-1/2